[Event "36th Zalakaros Festival 2017"]
[Site "Zalakaros"]
[Date "2017.05.25"]
[Round "8"]
[White "Hnydiuk, Aleksander"]
[Black "Tate, Alan"]
[Result "1-0"]
[ECO "D02"]
[WhiteElo "2390"]
[BlackElo "2320"]
[Annotator "NA"]
[PlyCount "57"]
[EventDate "2017.??.??"]
[EventType "swiss"]
[EventCountry "HUN"]
[SourceTitle "playchess.com"]
[Source "ChessBase"]
[SourceQuality "1"]
[TimeControl "40/5400+30:1800+30"]

1. Nf3 {[%emt 0:05:57]} d5 {[%emt 0:00:41]} 2. d4 {[%emt 0:01:26]} Nf6 {[%emt 0:00:23]} 3. c4 {[%emt 0:00:05]} e6 {[%emt 0:00:30]} 4. g3 {[%emt 0:00:07]} Bb4+ {[%emt 0:00:11]} 5. Bd2 {[%emt 0:00:04]} Bd6 {[%emt 0:00:06]} 6. Qc2 {[%emt 0:01:00]} c6 {[%emt 0:00:55]} 7. Nc3 {[%emt 0:00:17]} O-O {[%emt 0:14:54]} 8. e4 {[%emt 0:00:19]} Nxe4 {[%emt 0:04:19]} 9. Nxe4 {[%emt 0:00:05]} dxe4 {[%emt 0:00:02]} 10. Qxe4 {[%emt 0:00:06]} f5 {[%emt 0:00:08]} 11. Qc2 {[%emt 0:02:09]} c5 {[%emt 0:04:39]} 12. O-O-O {[%emt 0:01:20]} Nc6 {[%emt 0:04:30]} 13. Bc3 {[%emt 0:08:40]} Qb6 {[%emt 0:05:35]} 14. Bg2 {[%emt 0:00:54]} a5 {[%emt 0:09:36]} 15. Kb1 {[%emt 0:01:52]} Nb4 {[%emt 0:12:46]} 16. Qd2 {[%emt 0:11:17]} Qa6 {[%emt 0:08:46]} 17. b3 {[%emt 0:00:41]} Qc6 {[%emt 0:02:07]} 18. d5 {[%emt 0:08:43]} exd5 {[%emt 0:03:24]} 19. Bxb4 {[%emt 0:00:20]} d4 {[%emt 0:01:58]} 20. Nh4 {[%emt 0:02:35]} Qb6 {[%emt 0:05:58]} 21. Bd5+ {[%emt 0:00:13]} Rf7 {[%emt 0:00:03]} 22. Ba3 {[%emt 0:01:35]} f4 {[%emt 0:03:52]} 23. Rhe1 {[%emt 0:01:16]} g5 {[%emt 0:00:24]} 24. Nf3 {[%emt 0:00:27]} Bf5+ {[%emt 0:00:34]} 25. Ka1 {[%emt 0:00:18]} a4 {[%emt 0:00:35]} 26. b4 {[%emt 0:00:24]} cxb4 {[%emt 0:00:24]} 27. Bb2 {[%emt 0:00:03]} a3 {[%emt 0:02:56]} 28. Bxd4 {[%emt 0:00:20]} Qd8 {[%emt 0:02:06]} 29. Ne5 {[%emt 0:00:40]} 1-0

[Event "36th Zalakaros Festival 2017"]
[Site "Zalakaros"]
[Date "2017.05.25"]
[Round "8"]
[White "Hemant, Sharma"]
[Black "Gazik, Igor"]
[Result "1-0"]
[ECO "A04"]
[WhiteElo "2380"]
[BlackElo "2292"]
[Annotator "NA"]
[PlyCount "131"]
[EventDate "2017.??.??"]
[EventType "swiss"]
[EventCountry "HUN"]
[SourceTitle "playchess.com"]
[Source "ChessBase"]
[SourceQuality "1"]
[TimeControl "40/5400+30:1800+30"]

1. Nf3 {[%emt 0:00:03]} d6 {[%emt 0:02:53]} 2. g3 {[%emt 0:00:47]} e5 {[%emt 0:00:21]} 3. d3 {[%emt 0:00:19]} g6 {[%emt 0:00:33]} 4. Bg2 {[%emt 0:00:08]} Bg7 {[%emt 0:00:05]} 5. c4 {[%emt 0:01:02]} f5 {[%emt 0:00:55]} 6. Nc3 {[%emt 0:00:40]} c6 {[%emt 0:00:32]} 7. Rb1 {[%emt 0:03:25]} Nf6 {[%emt 0:01:02]} 8. b4 {[%emt 0:01:50]} O-O {[%emt 0:03:41]} 9. O-O {[%emt 0:00:53]} h6 {[%emt 0:06:33]} 10. b5 {[%emt 0:12:29]} c5 {[%emt 0:09:36]} 11. Ne1 {[%emt 0:07:47]} Nh5 {[%emt 0:43:32]} 12. Nd5 {[%emt 0:02:01]} f4 {[%emt 0:03:49]} 13. e3 {[%emt 0:00:37]} fxg3 {[%emt 0:00:33]} 14. fxg3 {[%emt 0:01:59]} Rxf1+ {[%emt 0:00:15]} 15. Kxf1 {[%emt 0:03:37]} Nf6 {[%emt 0:01:17]} 16. Nxf6+ {[%emt 0:03:59]} Qxf6+ {[%emt 0:02:46]} 17. Kg1 {[%emt 0:00:11]} Nd7 {[%emt 0:00:12]} 18. Nf3 {[%emt 0:03:16]} Qe7 {[%emt 0:02:55]} 19. Nh4 {[%emt 0:02:18]} Nf8 {[%emt 0:00:39]} 20. Be4 {[%emt 0:00:55]} Kh7 {[%emt 0:01:57]} 21. Qh5 {[%emt 0:01:53]} Qg5 {[%emt 0:00:12]} 22. Qf3 {[%emt 0:00:36]} Qe7 {[%emt 0:05:59]} 23. Bd2 {[%emt 0:03:22]} Bf6 {[%emt 0:02:12]} 24. Qh5 {[%emt 0:23:17]} Bxh4 {[%emt 0:00:16]} 25. gxh4 {[%emt 0:00:02]} Kg7 {[%emt 0:01:15]} 26. Qf3 {[%emt 0:00:01]} h5 {[%emt 0:01:55]} 27. Rf1 {[%emt 0:02:07]} Bg4 {[%emt 0:01:14]} 28. Qg2 {[%emt 0:00:01]} Rb8 {[%emt 0:00:13]} 29. h3 {[%emt 0:00:07]} Be6 {[%emt 0:00:43]} 30. Qg3 {[%emt 0:01:05]} Bf7 {[%emt 0:01:34]} 31. Bc3 {[%emt 0:00:11]} Nd7 {[%emt 0:00:50]} 32. Rf5 {[%emt 0:02:07]} Nf6 {[%emt 0:02:26]} 33. Bg2 {[%emt 0:00:13]} Re8 {[%emt 0:02:21]} 34. Rf2 {[%emt 0:01:24]} Bg8 {[%emt 0:00:58]} 35. Kh2 {[%emt 0:01:33]} Be6 {[%emt 0:00:34]} 36. a4 {[%emt 0:00:37]} b6 {[%emt 0:00:29]} 37. Bc6 {[%emt 0:01:26]} Bd7 {[%emt 0:00:18]} 38. Rg2 {[%emt 0:00:25]} Qf7 {[%emt 0:00:22]} 39. Bf3 {[%emt 0:00:22]} Re7 {[%emt 0:00:59]} 40. e4 {[%emt 0:00:00]} Re8 {[%emt 0:00:16]} 41. Bd2 {[%emt 0:01:03]} Rf8 {[%emt 0:03:08]} 42. Be2 {[%emt 0:02:49]} Be8 {[%emt 0:02:31]} 43. Kg1 {[%emt 0:02:18]} Kh7 {[%emt 0:07:38]} 44. Rf2 {[%emt 0:02:59]} Qg7 {[%emt 0:00:12]} 45. Rf1 {[%emt 0:00:13]} a5 {[%emt 0:06:20]} 46. bxa6 {[%emt 0:02:22]} Bxa4 {[%emt 0:00:01]} 47. Qg5 {[%emt 0:00:27]} Nd7 {[%emt 0:06:38]} 48. Ra1 {[%emt 0:00:25]} Bc6 {[%emt 0:00:07]} 49. Be3 {[%emt 0:00:54]} Ra8 {[%emt 0:00:36]} 50. Kh2 {[%emt 0:03:05]} Kh8 {[%emt 0:05:32]} 51. Rg1 {[%emt 0:06:13]} Rxa6 {[%emt 0:00:05]} 52. Bxh5 {[%emt 0:00:07]} Nf8 {[%emt 0:00:46]} 53. Rg2 {[%emt 0:06:34]} Be8 {[%emt 0:01:12]} 54. Qd8 {[%emt 0:00:36]} Bf7 {[%emt 0:02:11]} 55. Qxd6 {[%emt 0:00:46]} Ra3 {[%emt 0:00:28]} 56. Bg5 {[%emt 0:00:37]} Kh7 {[%emt 0:00:40]} 57. Bg4 {[%emt 0:00:17]} Bg8 {[%emt 0:01:11]} 58. Rf2 {[%emt 0:00:15]} Ra8 {[%emt 0:00:08]} 59. Bf6 {[%emt 0:01:05]} Qf7 {[%emt 0:00:26]} 60. Kg2 {[%emt 0:00:35]} Ne6 {[%emt 0:00:39]} 61. Bxe5 {[%emt 0:00:32]} Qe8 {[%emt 0:00:20]} 62. Qxb6 {[%emt 0:01:18]} Rd8 {[%emt 0:00:22]} 63. Rf6 {[%emt 0:01:34]} Ng7 {[%emt 0:00:55]} 64. Qc7 {[%emt 0:00:29]} Rxd3 {[%emt 0:00:35]} 65. Rf2 {[%emt 0:00:20]} Rd7 {[%emt 0:00:30]} 66. Bxd7 {[%emt 0:00:09]} 1-0

[Event "36th Zalakaros Festival 2017"]
[Site "Zalakaros"]
[Date "2017.05.25"]
[Round "8"]
[White "Lazarne Vajda, Szidonia"]
[Black "Pujari, Rucha"]
[Result "1/2-1/2"]
[ECO "C55"]
[WhiteElo "2357"]
[BlackElo "2203"]
[Annotator "NA"]
[PlyCount "74"]
[EventDate "2017.??.??"]
[EventType "swiss"]
[EventCountry "HUN"]
[SourceTitle "playchess.com"]
[Source "ChessBase"]
[SourceQuality "1"]
[TimeControl "40/5400+30:1800+30"]

1. e4 {[%emt 0:00:03]} e5 {[%emt 0:03:03]} 2. Nf3 {[%emt 0:00:58]} Nc6 {[%emt 0:00:46]} 3. Bc4 {[%emt 0:01:41]} Nf6 {[%emt 0:00:52]} 4. d4 {[%emt 0:00:45]} exd4 {[%emt 0:00:51]} 5. e5 {[%emt 0:00:15]} Ng4 {[%emt 0:00:38]} 6. O-O {[%emt 0:00:44]} d6 {[%emt 0:12:05]} 7. exd6 {[%emt 0:01:47]} Bxd6 {[%emt 0:02:45]} 8. Re1+ {[%emt 0:00:26]} Kf8 {[%emt 0:01:14]} 9. Nbd2 {[%emt 0:01:31]} Nge5 {[%emt 0:05:19]} 10. h3 {[%emt 0:01:18]} h6 {[%emt 0:05:46]} 11. b3 {[%emt 0:08:26]} Qf6 {[%emt 0:30:59]} 12. Nxe5 {[%emt 0:14:10]} Nxe5 {[%emt 0:02:02]} 13. Ne4 {[%emt 0:17:37]} Qg6 {[%emt 0:01:42]} 14. Nxd6 {[%emt 0:00:31]} Bxh3 {[%emt 0:01:47]} 15. Bd5 {[%emt 0:00:26]} cxd6 {[%emt 0:06:20]} 16. Ba3 {[%emt 0:08:26]} Kg8 {[%emt 0:04:56]} 17. Bxb7 {[%emt 0:07:15]} Rd8 {[%emt 0:10:27]} 18. Be4 {[%emt 0:05:27]} f5 {[%emt 0:03:03]} 19. Bd5+ {[%emt 0:00:07]} Kh7 {[%emt 0:00:02]} 20. f4 {[%emt 0:05:07]} Bg4 {[%emt 0:03:58]} 21. Qd2 {[%emt 0:07:19]} Nf3+ {[%emt 0:00:12]} 22. Bxf3 {[%emt 0:00:10]} Bxf3 {[%emt 0:00:04]} 23. Bb2 {[%emt 0:00:09]} Rhe8 {[%emt 0:01:49]} 24. Qf2 {[%emt 0:01:34]} Be4 {[%emt 0:00:34]} 25. Bxd4 {[%emt 0:00:17]} Rc8 {[%emt 0:00:30]} 26. c3 {[%emt 0:00:27]} Bb7 {[%emt 0:01:10]} 27. Rad1 {[%emt 0:03:21]} a6 {[%emt 0:00:01]} 28. c4 {[%emt 0:00:56]} Rxe1+ {[%emt 0:00:48]} 29. Rxe1 {[%emt 0:00:06]} Re8 {[%emt 0:00:08]} 30. Rxe8 {[%emt 0:04:12]} Qxe8 {[%emt 0:00:02]} 31. Qg3 {[%emt 0:00:45]} g6 {[%emt 0:00:16]} 32. Qe3 {[%emt 0:01:20]} Qxe3+ {[%emt 0:01:33]} 33. Bxe3 {[%emt 0:00:04]} Be4 {[%emt 0:00:41]} 34. b4 {[%emt 0:01:30]} Bd3 {[%emt 0:00:17]} 35. c5 {[%emt 0:00:25]} dxc5 {[%emt 0:00:02]} 36. bxc5 {[%emt 0:01:30]} Be4 {[%emt 0:00:06]} 37. g3 {[%emt 0:00:11]} Kg7 {[%emt 0:00:22]} 1/2-1/2

[Event "36th Zalakaros Festival 2017"]
[Site "Zalakaros"]
[Date "2017.05.25"]
[Round "8"]
[White "Rapport, Jovana"]
[Black "Banzea, Alexandru-Bogdan"]
[Result "1/2-1/2"]
[ECO "A45"]
[WhiteElo "2334"]
[BlackElo "2278"]
[Annotator "NA"]
[PlyCount "120"]
[EventDate "2017.??.??"]
[EventType "swiss"]
[EventCountry "HUN"]
[SourceTitle "playchess.com"]
[Source "ChessBase"]
[SourceQuality "1"]
[TimeControl "40/5400+30:1800+30"]

1. d4 {[%emt 0:00:07]} Nf6 {[%emt 0:00:41]} 2. Nc3 {[%emt 0:00:10]} d5 {[%emt 0:00:14]} 3. Bf4 {[%emt 0:00:06]} g6 {[%emt 0:00:18]} 4. Nb5 {[%emt 0:00:16]} Na6 {[%emt 0:00:09]} 5. e3 {[%emt 0:00:22]} Bg7 {[%emt 0:00:41]} 6. h3 {[%emt 0:00:09]} O-O {[%emt 0:00:57]} 7. Nf3 {[%emt 0:00:07]} c6 {[%emt 0:06:00]} 8. Nc3 {[%emt 0:00:14]} c5 {[%emt 0:04:06]} 9. Bxa6 {[%emt 0:00:36]} bxa6 {[%emt 0:00:15]} 10. Be5 {[%emt 0:01:20]} cxd4 {[%emt 0:15:08]} 11. exd4 {[%emt 0:01:14]} Bf5 {[%emt 0:01:41]} 12. O-O {[%emt 0:00:19]} Ne4 {[%emt 0:00:58]} 13. Ne2 {[%emt 0:11:18]} Rc8 {[%emt 0:05:42]} 14. Nc1 {[%emt 0:11:24]} Qb6 {[%emt 0:05:37]} 15. Nb3 {[%emt 0:02:33]} Nd6 {[%emt 0:05:23]} 16. c3 {[%emt 0:00:20]} Nc4 {[%emt 0:00:27]} 17. Bxg7 {[%emt 0:03:08]} Kxg7 {[%emt 0:00:11]} 18. Qe2 {[%emt 0:00:04]} a5 {[%emt 0:12:38]} 19. Ne5 {[%emt 0:00:56]} a4 {[%emt 0:10:47]} 20. Nc5 {[%emt 0:22:04]} Qxb2 {[%emt 0:08:53]} 21. Qxb2 {[%emt 0:00:06]} Nxb2 {[%emt 0:00:05]} 22. g4 {[%emt 0:00:05]} Be6 {[%emt 0:00:10]} 23. a3 {[%emt 0:05:02]} Rxc5 {[%emt 0:06:37]} 24. dxc5 {[%emt 0:00:06]} f6 {[%emt 0:00:04]} 25. Rab1 {[%emt 0:08:08]} fxe5 {[%emt 0:01:00]} 26. Rxb2 {[%emt 0:00:03]} Rc8 {[%emt 0:00:15]} 27. Re1 {[%emt 0:06:36]} Kf6 {[%emt 0:03:12]} 28. Rb5 {[%emt 0:01:44]} h5 {[%emt 0:01:29]} 29. f3 {[%emt 0:00:29]} hxg4 {[%emt 0:00:57]} 30. hxg4 {[%emt 0:00:04]} Bd7 {[%emt 0:01:39]} 31. Ra5 {[%emt 0:00:49]} Be8 {[%emt 0:00:07]} 32. Rb1 {[%emt 0:03:02]} e6 {[%emt 0:02:04]} 33. Kf2 {[%emt 0:08:32]} g5 {[%emt 0:01:56]} 34. Ke3 {[%emt 0:10:48]} a6 {[%emt 0:00:34]} 35. Rb6 {[%emt 0:00:41]} Bb5 {[%emt 0:00:22]} 36. c6 {[%emt 0:03:16]} Ke7 {[%emt 0:01:07]} 37. Raxa6 {[%emt 0:00:47]} Bxa6 {[%emt 0:00:29]} 38. Rxa6 {[%emt 0:00:02]} Kd6 {[%emt 0:00:39]} 39. Rxa4 {[%emt 0:00:39]} Rxc6 {[%emt 0:00:08]} 40. Kd3 {[%emt 0:00:00]} Kc5 {[%emt 0:02:48]} 41. Ra8 {[%emt 0:01:29]} Rc7 {[%emt 0:02:24]} 42. a4 {[%emt 0:01:06]} Rf7 {[%emt 0:00:49]} 43. Ke3 {[%emt 0:01:29]} Rf4 {[%emt 0:11:44]} 44. Ra5+ {[%emt 0:10:16]} Kc4 {[%emt 0:05:19]} 45. Ra6 {[%emt 0:00:09]} Kxc3 {[%emt 0:00:41]} 46. Rxe6 {[%emt 0:03:02]} d4+ {[%emt 0:09:33]} 47. Ke2 {[%emt 0:01:01]} d3+ {[%emt 0:00:06]} 48. Ke3 {[%emt 0:00:19]} Rd4 {[%emt 0:00:14]} 49. Rc6+ {[%emt 0:01:33]} Kb3 {[%emt 0:00:37]} 50. Kd2 {[%emt 0:00:44]} Kxa4 {[%emt 0:06:34]} 51. Rc5 {[%emt 0:01:21]} Rf4 {[%emt 0:00:05]} 52. Ke3 {[%emt 0:03:57]} Rd4 {[%emt 0:00:26]} 53. Kd2 {[%emt 0:00:12]} Rf4 {[%emt 0:00:05]} 54. Rxe5 {[%emt 0:01:11]} Rxf3 {[%emt 0:00:08]} 55. Rxg5 {[%emt 0:00:01]} Kb4 {[%emt 0:00:10]} 56. Rf5 {[%emt 0:01:55]} Rxf5 {[%emt 0:00:21]} 57. gxf5 Kc5 {[%emt 0:00:06]} 58. Kxd3 {[%emt 0:00:05]} Kd5 {[%emt 0:00:04]} 59. Kc3 {[%emt 0:00:03]} Ke5 {[%emt 0:00:05]} 60. Kb3 {[%emt 0:00:04]} Kxf5 {[%emt 0:00:05]} 1/2-1/2

[Event "36th Zalakaros Festival 2017"]
[Site "Zalakaros"]
[Date "2017.05.25"]
[Round "8"]
[White "Tica, Sven"]
[Black "Ugroczky, Peter"]
[Result "1-0"]
[ECO "E09"]
[WhiteElo "2332"]
[BlackElo "2185"]
[Annotator "NA"]
[PlyCount "47"]
[EventDate "2017.??.??"]
[EventType "swiss"]
[EventCountry "HUN"]
[SourceTitle "playchess.com"]
[Source "ChessBase"]
[SourceQuality "1"]
[TimeControl "40/5400+30:1800+30"]

1. d4 {[%emt 0:00:03]} d5 {[%emt 0:00:45]} 2. c4 {[%emt 0:00:04]} e6 {[%emt 0:00:08]} 3. Nf3 {[%emt 0:00:03]} Nf6 {[%emt 0:00:06]} 4. g3 {[%emt 0:00:03]} Be7 {[%emt 0:00:38]} 5. Bg2 {[%emt 0:00:04]} O-O {[%emt 0:00:14]} 6. O-O {[%emt 0:00:04]} c6 {[%emt 0:00:12]} 7. Qc2 {[%emt 0:00:03]} Nbd7 {[%emt 0:00:39]} 8. Nbd2 {[%emt 0:00:05]} b6 {[%emt 0:00:29]} 9. e4 {[%emt 0:00:04]} Ba6 10. b3 {[%emt 0:00:06]} Rc8 {[%emt 0:00:57]} 11. Bb2 {[%emt 0:00:06]} c5 {[%emt 0:00:38]} 12. exd5 exd5 {[%emt 0:00:07]} 13. Rfd1 {[%emt 0:00:06]} Qc7 {[%emt 0:04:43]} 14. cxd5 {[%emt 0:08:44]} Nxd5 {[%emt 0:02:28]} 15. Qf5 {[%emt 0:00:36]} N5f6 {[%emt 0:08:33]} 16. d5 {[%emt 0:07:16]} b5 {[%emt 0:04:16]} 17. Ng5 {[%emt 0:03:49]} g6 {[%emt 0:05:53]} 18. Qh3 {[%emt 0:01:04]} h5 {[%emt 0:00:45]} 19. d6 {[%emt 0:21:09]} Qxd6 {[%emt 0:08:58]} 20. Nde4 {[%emt 0:00:27]} Qc7 {[%emt 0:00:35]} 21. Ne6 {[%emt 0:00:24]} Qb6 {[%emt 0:10:54]} 22. Nxf8 {[%emt 0:00:36]} Nxf8 {[%emt 0:00:49]} 23. Rd6 {[%emt 0:00:25]} Rc6 {[%emt 0:03:11]} 24. Rxc6 {[%emt 0:00:33]} 1-0

[Event "36th Zalakaros Festival 2017"]
[Site "Zalakaros"]
[Date "2017.05.25"]
[Round "8"]
[White "Paszewski, Mateusz"]
[Black "Marosi, Levente"]
[Result "1-0"]
[ECO "B90"]
[WhiteElo "2327"]
[BlackElo "2286"]
[Annotator "NA"]
[PlyCount "69"]
[EventDate "2017.??.??"]
[EventType "swiss"]
[EventCountry "HUN"]
[SourceTitle "playchess.com"]
[Source "ChessBase"]
[SourceQuality "1"]
[TimeControl "40/5400+30:1800+30"]

1. e4 {[%emt 0:00:01]} c5 {[%emt 0:04:36]} 2. Nf3 {[%emt 0:00:07]} d6 {[%emt 0:00:28]} 3. d4 {[%emt 0:00:02]} cxd4 {[%emt 0:00:10]} 4. Nxd4 {[%emt 0:00:02]} Nf6 {[%emt 0:00:06]} 5. Nc3 {[%emt 0:00:02]} a6 {[%emt 0:00:12]} 6. Be3 {[%emt 0:00:03]} e5 {[%emt 0:00:13]} 7. Nb3 {[%emt 0:00:01]} Be6 {[%emt 0:00:21]} 8. h3 {[%emt 0:00:03]} Nc6 {[%emt 0:10:27]} 9. Qf3 {[%emt 0:00:35]} Rc8 {[%emt 0:12:11]} 10. O-O-O {[%emt 0:07:19]} Nb4 {[%emt 0:12:06]} 11. Kb1 {[%emt 0:03:03]} b5 {[%emt 0:00:23]} 12. a3 {[%emt 0:23:33]} Nc6 {[%emt 0:15:01]} 13. Nd5 {[%emt 0:15:18]} Bxd5 {[%emt 0:05:54]} 14. exd5 {[%emt 0:11:27]} e4 {[%emt 0:05:51]} 15. Qe2 {[%emt 0:00:53]} Ne5 {[%emt 0:00:34]} 16. Bd4 {[%emt 0:00:45]} Be7 {[%emt 0:06:38]} 17. Bxe5 {[%emt 0:08:36]} dxe5 {[%emt 0:01:01]} 18. g4 {[%emt 0:00:01]} O-O {[%emt 0:04:50]} 19. Bg2 {[%emt 0:00:58]} Rc4 {[%emt 0:01:33]} 20. g5 {[%emt 0:08:25]} Ne8 {[%emt 0:00:42]} 21. h4 {[%emt 0:01:07]} f5 {[%emt 0:03:21]} 22. gxf6 {[%emt 0:01:11]} Nxf6 {[%emt 0:00:02]} 23. Bh3 {[%emt 0:00:21]} Bd6 {[%emt 0:00:43]} 24. Rhg1 {[%emt 0:03:01]} Kh8 {[%emt 0:01:07]} 25. Be6 {[%emt 0:00:22]} g6 {[%emt 0:03:01]} 26. Qe3 {[%emt 0:05:52]} Qc7 {[%emt 0:06:33]} 27. Rc1 {[%emt 0:02:39]} Kg7 {[%emt 0:03:39]} 28. Rg5 {[%emt 0:02:43]} Nh5 {[%emt 0:01:14]} 29. Rxh5 {[%emt 0:01:57]} gxh5 {[%emt 0:00:03]} 30. Rg1+ {[%emt 0:00:27]} Kh8 {[%emt 0:00:01]} 31. Qg5 {[%emt 0:00:44]} h6 {[%emt 0:00:47]} 32. Qxh5 {[%emt 0:00:01]} Rf6 {[%emt 0:01:57]} 33. Qe8+ {[%emt 0:01:32]} Bf8 {[%emt 0:00:34]} 34. Rg8+ {[%emt 0:00:14]} Kh7 {[%emt 0:00:01]} 35. Rxf8 {[%emt 0:00:11]} 1-0

[Event "36th Zalakaros Festival 2017"]
[Site "Zalakaros"]
[Date "2017.05.25"]
[Round "8"]
[White "Blohberger, Felix"]
[Black "Havasi, Gergo"]
[Result "1-0"]
[ECO "C76"]
[WhiteElo "2319"]
[BlackElo "2402"]
[Annotator "NA"]
[PlyCount "109"]
[EventDate "2017.??.??"]
[EventType "swiss"]
[EventCountry "HUN"]
[SourceTitle "playchess.com"]
[Source "ChessBase"]
[SourceQuality "1"]
[TimeControl "40/5400+30:1800+30"]

1. e4 {[%emt 0:00:26]} e5 {[%emt 0:00:48]} 2. Nf3 {[%emt 0:00:22]} Nc6 {[%emt 0:00:18]} 3. Bb5 {[%emt 0:00:11]} a6 {[%emt 0:07:14]} 4. Ba4 {[%emt 0:00:22]} g6 {[%emt 0:01:33]} 5. c3 {[%emt 0:00:21]} d6 {[%emt 0:00:44]} 6. d4 {[%emt 0:00:10]} Bd7 {[%emt 0:00:16]} 7. O-O {[%emt 0:00:36]} Bg7 {[%emt 0:00:56]} 8. Re1 {[%emt 0:09:05]} Nf6 {[%emt 0:04:52]} 9. Nbd2 {[%emt 0:02:43]} Nh5 {[%emt 0:18:59]} 10. Nf1 {[%emt 0:04:40]} O-O {[%emt 0:06:43]} 11. dxe5 {[%emt 0:06:05]} dxe5 {[%emt 0:02:05]} 12. Ne3 {[%emt 0:01:28]} Nf4 {[%emt 0:05:54]} 13. Nd5 {[%emt 0:03:36]} Ne6 {[%emt 0:02:33]} 14. Nb4 {[%emt 0:08:26]} b5 {[%emt 0:11:50]} 15. Bb3 {[%emt 0:02:58]} Na5 {[%emt 0:06:37]} 16. Bc2 {[%emt 0:05:08]} c6 {[%emt 0:05:52]} 17. a4 {[%emt 0:03:28]} Qc7 {[%emt 0:03:30]} 18. Qe2 {[%emt 0:04:07]} Rfe8 {[%emt 0:04:40]} 19. h3 {[%emt 0:07:49]} Nf4 {[%emt 0:05:07]} 20. Bxf4 {[%emt 0:03:28]} exf4 {[%emt 0:00:03]} 21. Nd3 {[%emt 0:02:20]} Nc4 {[%emt 0:05:17]} 22. Bb3 {[%emt 0:09:36]} c5 {[%emt 0:04:26]} 23. e5 {[%emt 0:02:01]} Bh6 {[%emt 0:00:46]} 24. axb5 {[%emt 0:02:27]} axb5 {[%emt 0:00:16]} 25. Rxa8 {[%emt 0:01:39]} Rxa8 {[%emt 0:00:01]} 26. Nxf4 {[%emt 0:02:58]} Bc6 {[%emt 0:00:19]} 27. Bxc4 {[%emt 0:02:50]} bxc4 {[%emt 0:00:12]} 28. Qxc4 {[%emt 0:01:36]} Ra4 {[%emt 0:00:31]} 29. b4 {[%emt 0:00:24]} cxb4 {[%emt 0:01:59]} 30. Nd5 {[%emt 0:00:47]} Qb7 {[%emt 0:00:35]} 31. Qxc6 {[%emt 0:00:45]} Qxc6 {[%emt 0:00:06]} 32. Ne7+ {[%emt 0:00:04]} Kf8 {[%emt 0:00:37]} 33. Nxc6 {[%emt 0:00:04]} bxc3 {[%emt 0:00:05]} 34. Re2 {[%emt 0:02:56]} Ra1+ {[%emt 0:01:11]} 35. Kh2 {[%emt 0:00:11]} Rd1 {[%emt 0:00:33]} 36. Rc2 {[%emt 0:00:45]} Rd2 {[%emt 0:00:30]} 37. Ncd4 {[%emt 0:01:48]} Rd3 {[%emt 0:00:26]} 38. g3 {[%emt 0:01:06]} Ke7 {[%emt 0:00:30]} 39. Kg2 {[%emt 0:00:19]} f6 {[%emt 0:00:30]} 40. exf6+ {[%emt 0:00:00]} Kxf6 {[%emt 0:00:03]} 41. Kf1 {[%emt 0:01:20]} Rd1+ {[%emt 0:03:20]} 42. Ke2 {[%emt 0:00:24]} Rh1 {[%emt 0:00:31]} 43. h4 {[%emt 0:00:26]} Ke7 {[%emt 0:00:16]} 44. Rxc3 {[%emt 0:00:09]} Kd6 {[%emt 0:00:06]} 45. Rd3 {[%emt 0:00:28]} Kc5 {[%emt 0:00:19]} 46. Ne6+ {[%emt 0:00:18]} Kb4 {[%emt 0:00:36]} 47. Neg5 {[%emt 0:00:29]} Rc1 {[%emt 0:00:15]} 48. Nxh7 {[%emt 0:00:44]} Rc2+ {[%emt 0:00:15]} 49. Kf1 {[%emt 0:00:12]} Rc1+ {[%emt 0:00:29]} 50. Kg2 {[%emt 0:00:09]} Kc5 {[%emt 0:00:16]} 51. Nhg5 {[%emt 0:00:26]} Bxg5 {[%emt 0:00:22]} 52. Nxg5 {[%emt 0:00:09]} Kc6 {[%emt 0:00:40]} 53. Rf3 {[%emt 0:00:10]} Rc4 {[%emt 0:00:13]} 54. Rf6+ {[%emt 0:00:07]} Kb5 {[%emt 0:00:04]} 55. Rxg6 {[%emt 0:00:06]} 1-0

[Event "36th Zalakaros Festival 2017"]
[Site "Zalakaros"]
[Date "2017.05.25"]
[Round "8"]
[White "Secheres, Adrian-Simion"]
[Black "Csiki, Endre"]
[Result "0-1"]
[ECO "A34"]
[WhiteElo "2309"]
[BlackElo "2200"]
[Annotator "NA"]
[PlyCount "82"]
[EventDate "2017.??.??"]
[EventType "swiss"]
[EventCountry "HUN"]
[SourceTitle "playchess.com"]
[Source "ChessBase"]
[SourceQuality "1"]
[TimeControl "40/5400+30:1800+30"]

1. c4 {[%emt 0:00:16]} c5 {[%emt 0:00:39]} 2. Nc3 {[%emt 0:00:12]} g6 {[%emt 0:00:18]} 3. Nf3 {[%emt 0:00:50]} Bg7 {[%emt 0:00:09]} 4. d4 {[%emt 0:01:05]} cxd4 {[%emt 0:00:19]} 5. Nxd4 {[%emt 0:00:03]} Nc6 {[%emt 0:00:16]} 6. Nc2 {[%emt 0:01:15]} Bxc3+ {[%emt 0:04:02]} 7. bxc3 {[%emt 0:00:03]} Nf6 {[%emt 0:00:21]} 8. e3 {[%emt 0:05:16]} Qa5 {[%emt 0:02:46]} 9. Bb2 {[%emt 0:03:23]} d6 {[%emt 0:02:07]} 10. Be2 {[%emt 0:05:34]} Bd7 {[%emt 0:10:25]} 11. O-O {[%emt 0:01:36]} Rc8 {[%emt 0:00:55]} 12. Nb4 {[%emt 0:12:40]} Be6 {[%emt 0:21:49]} 13. Nd5 {[%emt 0:10:12]} Bxd5 {[%emt 0:10:58]} 14. cxd5 {[%emt 0:00:07]} Qxd5 {[%emt 0:00:32]} 15. Qb1 {[%emt 0:02:01]} Qe6 {[%emt 0:06:46]} 16. c4 {[%emt 0:03:35]} b6 {[%emt 0:01:18]} 17. Qd1 {[%emt 0:03:51]} O-O {[%emt 0:03:17]} 18. Rc1 {[%emt 0:01:47]} Ne5 {[%emt 0:03:55]} 19. Qd4 {[%emt 0:01:53]} Rc7 {[%emt 0:02:25]} 20. f4 {[%emt 0:03:35]} Nc6 {[%emt 0:00:21]} 21. Qc3 {[%emt 0:02:13]} h5 {[%emt 0:03:19]} 22. Rf3 {[%emt 0:04:08]} Kh7 {[%emt 0:00:47]} 23. e4 {[%emt 0:12:51]} Rg8 {[%emt 0:01:55]} 24. Bd3 {[%emt 0:13:20]} Nxe4 {[%emt 0:03:57]} 25. Qe1 {[%emt 0:01:25]} Nc5 {[%emt 0:00:19]} 26. Be2 {[%emt 0:00:51]} f5 {[%emt 0:01:24]} 27. Rh3 {[%emt 0:00:05]} Qf7 {[%emt 0:01:01]} 28. Qd1 {[%emt 0:01:17]} Ne4 {[%emt 0:00:42]} 29. Bxh5 {[%emt 0:03:06]} gxh5 {[%emt 0:00:21]} 30. Rxh5+ {[%emt 0:00:01]} Kg6 {[%emt 0:00:37]} 31. Qf3 {[%emt 0:00:02]} Qe6 {[%emt 0:02:50]} 32. Qh3 {[%emt 0:01:46]} Kf7 {[%emt 0:00:08]} 33. Rxf5+ {[%emt 0:00:08]} Nf6 {[%emt 0:00:26]} 34. Qh5+ {[%emt 0:01:20]} Kf8 {[%emt 0:00:44]} 35. Kf1 {[%emt 0:02:32]} Qf7 {[%emt 0:01:44]} 36. Qh4 {[%emt 0:01:50]} Qg6 {[%emt 0:01:22]} 37. Rg5 {[%emt 0:00:46]} Qd3+ {[%emt 0:01:19]} 38. Kg1 {[%emt 0:00:02]} Qd2 {[%emt 0:01:03]} 39. Rxg8+ {[%emt 0:01:56]} Nxg8 {[%emt 0:00:20]} 40. Qh8 {[%emt 0:00:00]} e5 {[%emt 0:00:44]} 41. fxe5 {[%emt 0:00:24]} Rf7 0-1